[Event "Titled Tuesday Blitz April 19 Late 2022"]
[White "Steinberg, Nitzan"]
[Black "Herrera Reyes, Jose Antonio"]
[WhiteFideId "2801795"]
[BlackFideId "2274914"]
[WhiteElo "2471"]
[BlackElo "2361"]
[Result "1-0"]
[Round "02"]
[TimeControl "180+1"]
[Date "2022.04.19"]
[WhiteClock "0:00:21"]
[BlackClock "0:00:25"]

1. Nf3 {[%clk 0:03:00]}  Nf6 {[%clk 0:02:58]} 2. d4 {[%clk 0:03:00]}  c5 {[%clk 0:02:57]} 3. d5 {[%clk 0:02:58]}  g6 {[%clk 0:02:57]} 4. c4 {[%clk 0:02:55]}  b5 {[%clk 0:02:57]} 5. cxb5 {[%clk 0:02:53]}  a6 {[%clk 0:02:57]} 6. b6 {[%clk 0:02:53]}  Bg7 {[%clk 0:02:57]} 7. Nc3 {[%clk 0:02:54]}  O-O {[%clk 0:02:58]} 8. e4 {[%clk 0:02:53]}  Qxb6 {[%clk 0:02:56]} 9. Be2 {[%clk 0:02:48]}  e6 {[%clk 0:02:53]} 10. O-O {[%clk 0:02:48]}  Bb7 {[%clk 0:02:51]} 11. Re1 {[%clk 0:02:42]}  d6 {[%clk 0:02:21]} 12. Bc4 {[%clk 0:02:40]}  e5 {[%clk 0:02:19]} 13. a4 {[%clk 0:02:34]}  Qc7 {[%clk 0:02:18]} 14. a5 {[%clk 0:02:32]}  Nbd7 {[%clk 0:02:18]} 15. Bf1 {[%clk 0:02:32]}  Ne8 {[%clk 0:02:15]} 16. Nd2 {[%clk 0:02:29]}  f5 {[%clk 0:02:15]} 17. Nc4 {[%clk 0:02:27]}  Ndf6 {[%clk 0:02:09]} 18. f3 {[%clk 0:02:23]}  fxe4 {[%clk 0:02:08]} 19. fxe4 {[%clk 0:02:22]}  Nh5 {[%clk 0:02:07]} 20. g3 {[%clk 0:02:20]}  Qf7 {[%clk 0:02:03]} 21. Be3 {[%clk 0:02:20]}  Rb8 {[%clk 0:02:01]} 22. Bh3 {[%clk 0:02:20]}  Qe7 {[%clk 0:01:55]} 23. Qg4 {[%clk 0:02:13]}  Bc8 {[%clk 0:01:54]} 24. Qxc8 {[%clk 0:02:08]}  Rxc8 {[%clk 0:01:53]} 25. Bxc8 {[%clk 0:02:09]}  Nef6 {[%clk 0:01:42]} 26. Be6+ {[%clk 0:02:05]}  Kh8 {[%clk 0:01:42]} 27. Rf1 {[%clk 0:02:05]}  Rb8 {[%clk 0:01:39]} 28. Nb6 {[%clk 0:02:01]}  Qd8 {[%clk 0:01:24]} 29. Rf2 {[%clk 0:01:54]}  Ne8 {[%clk 0:01:22]} 30. Raf1 {[%clk 0:01:49]}  Nc7 {[%clk 0:01:22]} 31. Bg4 {[%clk 0:01:45]}  Nf6 {[%clk 0:01:19]} 32. Bg5 {[%clk 0:01:45]}  Nce8 {[%clk 0:01:18]} 33. Bd7 {[%clk 0:01:41]}  h6 {[%clk 0:01:15]} 34. Bxe8 {[%clk 0:01:38]}  hxg5 {[%clk 0:01:14]} 35. Bxg6 {[%clk 0:01:38]}  Rxb6 {[%clk 0:00:59]} 36. axb6 {[%clk 0:01:39]}  Qxb6 {[%clk 0:00:59]} 37. Bf5 {[%clk 0:01:24]}  a5 {[%clk 0:00:58]} 38. h4 {[%clk 0:01:18]}  gxh4 {[%clk 0:00:58]} 39. Rh2 {[%clk 0:01:18]}  Kg8 {[%clk 0:00:54]} 40. Be6+ {[%clk 0:01:17]}  Kf8 {[%clk 0:00:54]} 41. gxh4 {[%clk 0:01:17]}  c4+ {[%clk 0:00:54]} 42. Kh1 {[%clk 0:01:17]}  Qe3 {[%clk 0:00:46]} 43. Rg2 {[%clk 0:01:17]}  Qh6 {[%clk 0:00:43]} 44. Nb5 {[%clk 0:01:01]}  Qxh4+ {[%clk 0:00:42]} 45. Kg1 {[%clk 0:01:02]}  Bh6 {[%clk 0:00:32]} 46. Rf3 {[%clk 0:00:38]}  Ke7 {[%clk 0:00:29]} 47. Na7 {[%clk 0:00:28]}  Qe1+ {[%clk 0:00:27]} 48. Kh2 {[%clk 0:00:28]}  Bf4+ {[%clk 0:00:26]} 49. Rxf4 {[%clk 0:00:28]}  exf4 {[%clk 0:00:27]} 50. Nc6+ {[%clk 0:00:28]}  Kf8 {[%clk 0:00:26]} 51. e5 {[%clk 0:00:21]}  dxe5 {[%clk 0:00:25]} 52. d6 {[%clk 0:00:21]}  f3 {[%clk 0:00:26]} 53. d7 {[%clk 0:00:21]}  Nxd7 {[%clk 0:00:25]} 54. Rg8# {[%clk 0:00:21]} 1-0


[Site "https://www.chess.com"]

[Event "Titled Tuesday Blitz April 19 Late 2022"]
[White "Svane, Rasmus"]
[Black "Pesotskiy, Mikhail"]
[WhiteFideId "4657101"]
[BlackFideId "34164453"]
[WhiteElo "2645"]
[BlackElo "2010"]
[Result "1-0"]
[Round "02"]
[TimeControl "180+1"]
[Date "2022.04.19"]
[WhiteClock "0:02:10"]
[BlackClock "0:02:03"]

1. Nf3 {[%clk 0:03:00]}  Nf6 {[%clk 0:02:59]} 2. g3 {[%clk 0:03:00]}  b6 {[%clk 0:03:00]} 3. Bg2 {[%clk 0:03:01]}  Bb7 {[%clk 0:03:01]} 4. O-O {[%clk 0:03:01]}  e6 {[%clk 0:03:01]} 5. d4 {[%clk 0:02:59]}  Be7 {[%clk 0:03:02]} 6. c4 {[%clk 0:03:00]}  O-O {[%clk 0:03:03]} 7. Re1 {[%clk 0:03:00]}  d6 {[%clk 0:02:49]} 8. Nc3 {[%clk 0:02:58]}  Ne4 {[%clk 0:02:49]} 9. Qc2 {[%clk 0:02:58]}  Nxc3 {[%clk 0:02:49]} 10. Ng5 {[%clk 0:02:59]}  Bxg5 {[%clk 0:02:43]} 11. Bxb7 {[%clk 0:02:51]}  Bxc1 {[%clk 0:02:38]} 12. bxc3 {[%clk 0:02:43]}  Bh6 {[%clk 0:02:21]} 13. Bxa8 {[%clk 0:02:43]}  c6 {[%clk 0:02:22]} 14. d5 {[%clk 0:02:35]}  exd5 {[%clk 0:02:08]} 15. cxd5 {[%clk 0:02:36]}  c5 {[%clk 0:02:09]} 16. Bc6 {[%clk 0:02:35]}  Nxc6 {[%clk 0:02:09]} 17. dxc6 {[%clk 0:02:36]}  Qc7 {[%clk 0:02:10]} 18. Qa4 {[%clk 0:02:33]}  Rc8 {[%clk 0:02:07]} 19. Rad1 {[%clk 0:02:34]}  Bg5 {[%clk 0:02:07]} 20. Rd5 {[%clk 0:02:22]}  Be7 {[%clk 0:02:07]} 21. Red1 {[%clk 0:02:22]}  a5 {[%clk 0:02:04]} 22. e4 {[%clk 0:02:19]}  Qxc6 {[%clk 0:02:02]} 23. Qxc6 {[%clk 0:02:17]}  Rxc6 {[%clk 0:02:03]} 24. e5 {[%clk 0:02:11]}  dxe5 {[%clk 0:02:04]} 25. Rd8+ {[%clk 0:02:11]}  Bf8 {[%clk 0:02:03]} 26. Rb8 {[%clk 0:02:10]} 1-0


[Site "https://www.chess.com"]

[Event "Titled Tuesday Blitz April 19 Late 2022"]
[White "Taboas Rodriguez, Daniel"]
[Black "Kanyamarala, Trisha"]
[WhiteFideId "2208466"]
[BlackFideId "45004722"]
[WhiteElo "2429"]
[BlackElo "2079"]
[Result "1/2-1/2"]
[Round "02"]
[TimeControl "180+1"]
[Date "2022.04.19"]
[WhiteClock "0:00:39"]
[BlackClock "0:00:07"]

1. d4 {[%clk 0:03:00]}  d5 {[%clk 0:02:55]} 2. Nf3 {[%clk 0:02:56]}  Nf6 {[%clk 0:02:53]} 3. c4 {[%clk 0:02:57]}  e6 {[%clk 0:02:53]} 4. Bg5 {[%clk 0:02:57]}  h6 {[%clk 0:02:50]} 5. Bxf6 {[%clk 0:02:56]}  Qxf6 {[%clk 0:02:50]} 6. e3 {[%clk 0:02:57]}  Bb4+ {[%clk 0:02:47]} 7. Nc3 {[%clk 0:02:56]}  O-O {[%clk 0:02:45]} 8. a3 {[%clk 0:02:55]}  Bxc3+ {[%clk 0:02:44]} 9. bxc3 {[%clk 0:02:56]}  c5 {[%clk 0:02:45]} 10. Bd3 {[%clk 0:02:55]}  Nc6 {[%clk 0:02:40]} 11. O-O {[%clk 0:02:55]}  Rd8 {[%clk 0:02:36]} 12. Qe2 {[%clk 0:02:53]}  dxc4 {[%clk 0:02:20]} 13. Bxc4 {[%clk 0:02:53]}  cxd4 {[%clk 0:02:20]} 14. cxd4 {[%clk 0:02:53]}  e5 {[%clk 0:02:20]} 15. dxe5 {[%clk 0:02:39]}  Nxe5 {[%clk 0:02:21]} 16. Nxe5 {[%clk 0:02:39]}  Qxe5 {[%clk 0:02:21]} 17. Rad1 {[%clk 0:02:39]}  Bf5 {[%clk 0:02:20]} 18. Rd2 {[%clk 0:02:34]}  Rac8 {[%clk 0:02:12]} 19. Rxd8+ {[%clk 0:02:25]}  Rxd8 {[%clk 0:02:11]} 20. a4 {[%clk 0:02:16]}  Qc3 {[%clk 0:02:06]} 21. Qa2 {[%clk 0:02:08]}  Bg6 {[%clk 0:02:02]} 22. h3 {[%clk 0:01:52]}  Rd2 {[%clk 0:02:01]} 23. Qb3 {[%clk 0:01:51]}  Qxb3 {[%clk 0:01:59]} 24. Bxb3 {[%clk 0:01:52]}  Rb2 {[%clk 0:01:56]} 25. Bd5 {[%clk 0:01:52]}  a5 {[%clk 0:01:44]} 26. Rc1 {[%clk 0:01:51]}  Rb4 {[%clk 0:01:39]} 27. Rc8+ {[%clk 0:01:48]}  Kh7 {[%clk 0:01:38]} 28. Rc7 {[%clk 0:01:48]}  b6 {[%clk 0:01:33]} 29. Rb7 {[%clk 0:01:44]}  Be4 {[%clk 0:01:23]} 30. Bxe4+ {[%clk 0:01:35]}  Rxe4 {[%clk 0:01:24]} 31. Rxb6 {[%clk 0:01:34]}  Rxa4 {[%clk 0:01:24]} 32. Ra6 {[%clk 0:01:34]}  Ra1+ {[%clk 0:01:22]} 33. Kh2 {[%clk 0:01:34]}  a4 {[%clk 0:01:23]} 34. g4 {[%clk 0:01:33]}  a3 {[%clk 0:01:22]} 35. h4 {[%clk 0:01:33]}  Kg8 {[%clk 0:01:05]} 36. h5 {[%clk 0:01:32]}  Kf8 {[%clk 0:01:06]} 37. Ra7 {[%clk 0:01:31]}  a2 {[%clk 0:01:00]} 38. Kg2 {[%clk 0:01:32]}  Ke8 {[%clk 0:00:59]} 39. Kf3 {[%clk 0:01:25]}  Kd8 {[%clk 0:00:59]} 40. Kf4 {[%clk 0:01:24]}  Kc8 {[%clk 0:00:59]} 41. Kf5 {[%clk 0:01:20]}  Kb8 {[%clk 0:00:57]} 42. Ra3 {[%clk 0:01:20]}  Kc7 {[%clk 0:00:53]} 43. e4 {[%clk 0:01:20]}  Kc6 {[%clk 0:00:50]} 44. e5 {[%clk 0:01:20]}  Kc5 {[%clk 0:00:49]} 45. f4 {[%clk 0:01:20]}  Kb4 {[%clk 0:00:40]} 46. Ra7 {[%clk 0:01:19]}  Kb3 {[%clk 0:00:37]} 47. Rb7+ {[%clk 0:01:08]}  Kc3 {[%clk 0:00:37]} 48. Ra7 {[%clk 0:01:07]}  Kd4 {[%clk 0:00:35]} 49. Ra4+ {[%clk 0:01:04]}  Ke3 {[%clk 0:00:34]} 50. Ra3+ {[%clk 0:01:03]}  Kf2 {[%clk 0:00:35]} 51. g5 {[%clk 0:00:53]}  hxg5 {[%clk 0:00:24]} 52. fxg5 {[%clk 0:00:53]}  Kg2 {[%clk 0:00:18]} 53. Kg4 {[%clk 0:00:53]}  Kf2 {[%clk 0:00:13]} 54. Kf4 {[%clk 0:00:51]}  Ke2 {[%clk 0:00:13]} 55. Ke4 {[%clk 0:00:50]}  Kd2 {[%clk 0:00:14]} 56. Kd4 {[%clk 0:00:51]}  Kc2 {[%clk 0:00:13]} 57. Kc4 {[%clk 0:00:51]}  Kb2 {[%clk 0:00:14]} 58. Rb3+ {[%clk 0:00:51]}  Kc2 {[%clk 0:00:13]} 59. Ra3 {[%clk 0:00:50]}  Kb2 {[%clk 0:00:07]} 60. Rb3+ {[%clk 0:00:45]}  Kc2 {[%clk 0:00:07]} 61. Ra3 {[%clk 0:00:39]} 1/2-1/2


[Site "https://www.chess.com"]

[Event "Titled Tuesday Blitz April 19 Late 2022"]
[White "Tregubov, Pavel V."]
[Black "Keymer, Vincent"]
[WhiteFideId "4115341"]
[BlackFideId "12940690"]
[WhiteElo "2341"]
[BlackElo "2557"]
[Result "0-1"]
[Round "02"]
[TimeControl "180+1"]
[Date "2022.04.19"]
[WhiteClock "0:01:41"]
[BlackClock "0:01:19"]

1. e4 {[%clk 0:03:00]}  c6 {[%clk 0:02:59]} 2. Nf3 {[%clk 0:03:00]}  d5 {[%clk 0:03:00]} 3. Nc3 {[%clk 0:03:00]}  dxe4 {[%clk 0:03:00]} 4. Nxe4 {[%clk 0:03:00]}  Nf6 {[%clk 0:03:01]} 5. Qe2 {[%clk 0:03:00]}  Nxe4 {[%clk 0:03:02]} 6. Qxe4 {[%clk 0:03:00]}  Nd7 {[%clk 0:03:02]} 7. Bc4 {[%clk 0:03:01]}  Nf6 {[%clk 0:03:03]} 8. Ne5 {[%clk 0:03:01]}  e6 {[%clk 0:03:03]} 9. Qf4 {[%clk 0:03:02]}  b5 {[%clk 0:02:52]} 10. Be2 {[%clk 0:02:58]}  Bb7 {[%clk 0:02:43]} 11. d4 {[%clk 0:02:57]}  Be7 {[%clk 0:02:37]} 12. O-O {[%clk 0:02:55]}  O-O {[%clk 0:02:37]} 13. c3 {[%clk 0:02:48]}  a6 {[%clk 0:02:36]} 14. Qg3 {[%clk 0:02:46]}  Ne4 {[%clk 0:02:04]} 15. Qd3 {[%clk 0:02:24]}  c5 {[%clk 0:01:43]} 16. Bf3 {[%clk 0:02:20]}  f5 {[%clk 0:01:43]} 17. Be3 {[%clk 0:02:16]}  Bd6 {[%clk 0:01:37]} 18. Rad1 {[%clk 0:02:02]}  Qc7 {[%clk 0:01:31]} 19. Rfe1 {[%clk 0:01:55]}  Rad8 {[%clk 0:01:22]} 20. a4 {[%clk 0:01:41]}  Bxe5 {[%clk 0:01:19]} 0-1


[Site "https://www.chess.com"]

[Event "Titled Tuesday Blitz April 19 Late 2022"]
[White "Vachier-Lagrave, Maxime"]
[Black "Taichman, Ori"]
[WhiteFideId "623539"]
[BlackFideId "2804069"]
[WhiteElo "2813"]
[BlackElo "2227"]
[Result "1-0"]
[Round "02"]
[TimeControl "180+1"]
[Date "2022.04.19"]
[WhiteClock "0:01:28"]
[BlackClock "0:00:04"]

1. e4 {[%clk 0:03:00]}  c5 {[%clk 0:02:58]} 2. Nf3 {[%clk 0:03:00]}  Nc6 {[%clk 0:02:56]} 3. c3 {[%clk 0:02:59]}  d6 {[%clk 0:02:54]} 4. d4 {[%clk 0:02:59]}  e5 {[%clk 0:02:55]} 5. dxc5 {[%clk 0:02:59]}  dxc5 {[%clk 0:02:55]} 6. Qxd8+ {[%clk 0:02:57]}  Kxd8 {[%clk 0:02:55]} 7. Na3 {[%clk 0:02:57]}  Bg4 {[%clk 0:02:42]} 8. Nc4 {[%clk 0:02:53]}  f6 {[%clk 0:02:37]} 9. Ne3 {[%clk 0:02:52]}  Bxf3 {[%clk 0:02:37]} 10. gxf3 {[%clk 0:02:52]}  g5 {[%clk 0:02:37]} 11. h4 {[%clk 0:02:50]}  gxh4 {[%clk 0:02:27]} 12. Rxh4 {[%clk 0:02:50]}  Bh6 {[%clk 0:02:26]} 13. Bc4 {[%clk 0:02:47]}  Bg5 {[%clk 0:02:23]} 14. Rh1 {[%clk 0:02:47]}  Nge7 {[%clk 0:02:22]} 15. Ng4 {[%clk 0:02:45]}  h5 {[%clk 0:02:15]} 16. Bxg5 {[%clk 0:02:45]}  fxg5 {[%clk 0:02:16]} 17. Nf6 {[%clk 0:02:44]}  Kc7 {[%clk 0:02:00]} 18. Rxh5 {[%clk 0:02:43]}  Rxh5 {[%clk 0:01:59]} 19. Nxh5 {[%clk 0:02:44]}  Rh8 {[%clk 0:01:52]} 20. Ng3 {[%clk 0:02:44]}  Ng6 {[%clk 0:01:52]} 21. Kd2 {[%clk 0:02:40]}  Rh2 {[%clk 0:01:50]} 22. Ke3 {[%clk 0:02:36]}  Nf4 {[%clk 0:01:49]} 23. Rg1 {[%clk 0:02:35]}  Nh3 {[%clk 0:01:24]} 24. Rf1 {[%clk 0:02:31]}  Nf4 {[%clk 0:01:12]} 25. Rh1 {[%clk 0:02:23]}  Ng2+ {[%clk 0:01:06]} 26. Kd2 {[%clk 0:02:22]}  Rh4 {[%clk 0:01:00]} 27. Bf1 {[%clk 0:02:18]}  Rxh1 {[%clk 0:00:58]} 28. Nxh1 {[%clk 0:02:17]}  Nf4 {[%clk 0:00:57]} 29. Ng3 {[%clk 0:02:18]}  Ne7 {[%clk 0:00:56]} 30. Bc4 {[%clk 0:02:17]}  Neg6 {[%clk 0:00:54]} 31. Nf1 {[%clk 0:02:17]}  Nh4 {[%clk 0:00:54]} 32. Nh2 {[%clk 0:02:17]}  Kd6 {[%clk 0:00:52]} 33. a4 {[%clk 0:02:15]}  b6 {[%clk 0:00:49]} 34. Bf1 {[%clk 0:02:15]}  Ke6 {[%clk 0:00:43]} 35. b4 {[%clk 0:02:15]}  a5 {[%clk 0:00:40]} 36. bxa5 {[%clk 0:02:15]}  bxa5 {[%clk 0:00:41]} 37. Kc2 {[%clk 0:02:15]}  Kd6 {[%clk 0:00:37]} 38. Kb3 {[%clk 0:02:15]}  Ne6 {[%clk 0:00:27]} 39. Kc4 {[%clk 0:02:11]}  Kc6 {[%clk 0:00:25]} 40. Bh3 {[%clk 0:02:12]}  Nc7 {[%clk 0:00:25]} 41. Bg4 {[%clk 0:02:10]}  Ne8 {[%clk 0:00:24]} 42. Nf1 {[%clk 0:02:10]}  Nd6+ {[%clk 0:00:24]} 43. Kd3 {[%clk 0:02:09]}  Ng2 {[%clk 0:00:23]} 44. Ne3 {[%clk 0:02:08]}  c4+ {[%clk 0:00:19]} 45. Kc2 {[%clk 0:02:06]}  Ne1+ {[%clk 0:00:13]} 46. Kd2 {[%clk 0:02:03]}  Nd3 {[%clk 0:00:14]} 47. Be6 {[%clk 0:01:57]}  Nb2 {[%clk 0:00:11]} 48. Kc2 {[%clk 0:01:57]}  Nxa4 {[%clk 0:00:11]} 49. Ng4 {[%clk 0:01:57]}  Nc5 {[%clk 0:00:09]} 50. Nxe5+ {[%clk 0:01:57]}  Kb5 {[%clk 0:00:10]} 51. Bd5 {[%clk 0:01:53]}  a4 {[%clk 0:00:09]} 52. Bc6+ {[%clk 0:01:53]}  Kb6 {[%clk 0:00:09]} 53. Kb2 {[%clk 0:01:50]}  Nd3+ {[%clk 0:00:06]} 54. Nxd3 {[%clk 0:01:49]}  Kxc6 {[%clk 0:00:06]} 55. Ne5+ {[%clk 0:01:47]}  Kc5 {[%clk 0:00:05]} 56. Nd7+ {[%clk 0:01:44]}  Kc6 {[%clk 0:00:06]} 57. Nf8 {[%clk 0:01:42]}  Nb5 {[%clk 0:00:05]} 58. Ne6 {[%clk 0:01:43]}  a3+ {[%clk 0:00:06]} 59. Ka2 {[%clk 0:01:43]}  Nxc3+ {[%clk 0:00:06]} 60. Kxa3 {[%clk 0:01:43]}  Nd1 {[%clk 0:00:07]} 61. Kb4 {[%clk 0:01:41]}  Nxf2 {[%clk 0:00:07]} 62. Nxg5 {[%clk 0:01:41]}  Kd6 {[%clk 0:00:06]} 63. Kxc4 {[%clk 0:01:35]}  Ke5 {[%clk 0:00:06]} 64. Nf7+ {[%clk 0:01:33]}  Kf4 {[%clk 0:00:06]} 65. e5 {[%clk 0:01:33]}  Kf5 {[%clk 0:00:05]} 66. Kd5 {[%clk 0:01:32]}  Nd3 {[%clk 0:00:05]} 67. Nd6+ {[%clk 0:01:30]}  Kg6 {[%clk 0:00:04]} 68. Kd4 {[%clk 0:01:28]}  Nf4 {[%clk 0:00:04]} 69. Ke4 {[%clk 0:01:29]}  Ne6 {[%clk 0:00:04]} 70. f4 {[%clk 0:01:29]}  Kg7 {[%clk 0:00:04]} 71. f5 {[%clk 0:01:29]}  Ng5+ {[%clk 0:00:03]} 72. Kd5 {[%clk 0:01:29]}  Kf8 {[%clk 0:00:03]} 73. f6 {[%clk 0:01:29]}  Nh7 {[%clk 0:00:04]} 74. Ne4 {[%clk 0:01:27]}  Kf7 {[%clk 0:00:04]} 75. e6+ {[%clk 0:01:27]}  Kf8 {[%clk 0:00:03]} 76. Ke5 {[%clk 0:01:28]}  Ke8 {[%clk 0:00:03]} 77. Nd6+ {[%clk 0:01:28]}  Kf8 {[%clk 0:00:04]} 78. e7+ {[%clk 0:01:28]} 1-0


[Site "https://www.chess.com"]

[Event "Titled Tuesday Blitz April 19 Late 2022"]
[White "Vasquez Schroeder, Rodrigo"]
[Black "Vlassov, Nikolai"]
[WhiteFideId "3400042"]
[BlackFideId "4103360"]
[WhiteElo "2561"]
[BlackElo "2407"]
[Result "1/2-1/2"]
[Round "02"]
[TimeControl "180+1"]
[Date "2022.04.19"]
[WhiteClock "0:00:18"]
[BlackClock "0:00:08"]

1. e4 {[%clk 0:03:00]}  Nc6 {[%clk 0:02:59]} 2. Nf3 {[%clk 0:03:00]}  d5 {[%clk 0:03:00]} 3. exd5 {[%clk 0:02:57]}  Qxd5 {[%clk 0:03:00]} 4. d4 {[%clk 0:02:56]}  Bg4 {[%clk 0:03:00]} 5. Be2 {[%clk 0:02:55]}  O-O-O {[%clk 0:03:00]} 6. c3 {[%clk 0:02:53]}  Nf6 {[%clk 0:02:51]} 7. h3 {[%clk 0:02:51]}  Bh5 {[%clk 0:02:50]} 8. Nbd2 {[%clk 0:02:47]}  e5 {[%clk 0:02:50]} 9. c4 {[%clk 0:02:46]}  Qa5 {[%clk 0:02:49]} 10. d5 {[%clk 0:02:46]}  e4 {[%clk 0:02:45]} 11. dxc6 {[%clk 0:02:26]}  exf3 {[%clk 0:02:44]} 12. cxb7+ {[%clk 0:02:11]}  Kb8 {[%clk 0:02:44]} 13. Bxf3 {[%clk 0:02:11]}  Bxf3 {[%clk 0:02:34]} 14. Qxf3 {[%clk 0:01:54]}  Bb4 {[%clk 0:02:33]} 15. O-O {[%clk 0:01:55]}  Bxd2 {[%clk 0:02:32]} 16. a3 {[%clk 0:01:53]}  Bxc1 {[%clk 0:02:29]} 17. Raxc1 {[%clk 0:01:53]}  Rhe8 {[%clk 0:02:15]} 18. b4 {[%clk 0:01:50]}  Qb6 {[%clk 0:02:03]} 19. c5 {[%clk 0:01:50]}  Qxb7 {[%clk 0:01:56]} 20. c6 {[%clk 0:01:51]}  Qa6 {[%clk 0:01:51]} 21. b5 {[%clk 0:01:45]}  Qa4 {[%clk 0:01:43]} 22. Rfd1 {[%clk 0:01:41]}  Rxd1+ {[%clk 0:01:39]} 23. Rxd1 {[%clk 0:01:42]}  Qxb5 {[%clk 0:01:26]} 24. a4 {[%clk 0:01:36]}  Qb4 {[%clk 0:01:18]} 25. Kh2 {[%clk 0:01:27]}  Ka8 {[%clk 0:01:08]} 26. Rd7 {[%clk 0:01:18]}  Qe4 {[%clk 0:00:41]} 27. Qxe4 {[%clk 0:01:11]}  Nxe4 {[%clk 0:00:41]} 28. Rxf7 {[%clk 0:01:12]}  a5 {[%clk 0:00:38]} 29. Rxc7 {[%clk 0:01:09]}  Nc5 {[%clk 0:00:32]} 30. Rxg7 {[%clk 0:01:04]}  Nxa4 {[%clk 0:00:33]} 31. Rg5 {[%clk 0:01:04]}  Kb8 {[%clk 0:00:24]} 32. Rxa5 {[%clk 0:01:04]}  Nb6 {[%clk 0:00:23]} 33. Ra6 {[%clk 0:01:00]}  Nc8 {[%clk 0:00:20]} 34. f4 {[%clk 0:00:56]}  Kc7 {[%clk 0:00:20]} 35. g4 {[%clk 0:00:57]}  Rf8 {[%clk 0:00:20]} 36. Kg3 {[%clk 0:00:56]}  Rf6 {[%clk 0:00:21]} 37. g5 {[%clk 0:00:55]}  Rxc6 {[%clk 0:00:21]} 38. Ra5 {[%clk 0:00:50]}  Kd6 {[%clk 0:00:19]} 39. h4 {[%clk 0:00:48]}  Ne7 {[%clk 0:00:18]} 40. h5 {[%clk 0:00:46]}  Rc5 {[%clk 0:00:14]} 41. Ra6+ {[%clk 0:00:43]}  Kd7 {[%clk 0:00:12]} 42. Kg4 {[%clk 0:00:43]}  Rc1 {[%clk 0:00:08]} 43. Rh6 {[%clk 0:00:40]}  Rg1+ {[%clk 0:00:07]} 44. Kf3 {[%clk 0:00:40]}  Rf1+ {[%clk 0:00:07]} 45. Ke4 {[%clk 0:00:37]}  Re1+ {[%clk 0:00:08]} 46. Kd3 {[%clk 0:00:37]}  Rf1 {[%clk 0:00:06]} 47. Rxh7 {[%clk 0:00:35]}  Rxf4 {[%clk 0:00:06]} 48. g6 {[%clk 0:00:36]}  Ke6 {[%clk 0:00:06]} 49. g7 {[%clk 0:00:34]}  Rh4 {[%clk 0:00:04]} 50. h6 {[%clk 0:00:30]}  Kf7 {[%clk 0:00:04]} 51. g8=Q+ {[%clk 0:00:20]}  Kxg8 {[%clk 0:00:04]} 52. Rxe7 {[%clk 0:00:21]}  Rxh6 {[%clk 0:00:04]} 53. Ke4 {[%clk 0:00:19]}  Rg6 {[%clk 0:00:04]} 54. Re5 {[%clk 0:00:19]}  Rg7 {[%clk 0:00:04]} 55. Kf5 {[%clk 0:00:19]}  Rf7+ {[%clk 0:00:05]} 56. Kg6 {[%clk 0:00:20]}  Rg7+ {[%clk 0:00:05]} 57. Kf6 {[%clk 0:00:20]}  Rf7+ {[%clk 0:00:06]} 58. Ke6 {[%clk 0:00:21]}  Rg7 {[%clk 0:00:06]} 59. Rf5 {[%clk 0:00:21]}  Rg6+ {[%clk 0:00:07]} 60. Ke5 {[%clk 0:00:21]}  Kg7 {[%clk 0:00:07]} 61. Rf4 {[%clk 0:00:21]}  Rg5+ {[%clk 0:00:07]} 62. Ke6 {[%clk 0:00:21]}  Kg6 {[%clk 0:00:07]} 63. Rf6+ {[%clk 0:00:21]}  Kh5 {[%clk 0:00:07]} 64. Rf8 {[%clk 0:00:22]}  Kg4 {[%clk 0:00:08]} 65. Rf6 {[%clk 0:00:20]}  Kh5 {[%clk 0:00:07]} 66. Kf7 {[%clk 0:00:20]}  Kg4 {[%clk 0:00:07]} 67. Rg6 {[%clk 0:00:18]}  Rxg6 {[%clk 0:00:08]} 68. Kxg6 {[%clk 0:00:18]} 1/2-1/2


[Site "https://www.chess.com"]

[Event "Titled Tuesday Blitz April 19 Late 2022"]
[White "Zivkovic, Nemanja"]
[Black "Stanisz, Patryk"]
[WhiteFideId "942154"]
[BlackFideId "1123106"]
[WhiteElo "2364"]
[BlackElo "1833"]
[Result "1-0"]
[Round "02"]
[TimeControl "180+1"]
[Date "2022.04.19"]
[WhiteClock "0:01:39"]
[BlackClock "0:00:18"]

1. e4 {[%clk 0:02:59]}  c5 {[%clk 0:02:59]} 2. Nf3 {[%clk 0:02:59]}  Nc6 {[%clk 0:02:59]} 3. Bb5 {[%clk 0:02:58]}  Nf6 {[%clk 0:02:59]} 4. Qe2 {[%clk 0:02:52]}  g6 {[%clk 0:02:55]} 5. O-O {[%clk 0:02:52]}  Bg7 {[%clk 0:02:55]} 6. c3 {[%clk 0:02:52]}  O-O {[%clk 0:02:54]} 7. d4 {[%clk 0:02:53]}  d5 {[%clk 0:02:52]} 8. e5 {[%clk 0:02:46]}  Ne4 {[%clk 0:02:52]} 9. Be3 {[%clk 0:02:43]}  cxd4 {[%clk 0:02:50]} 10. cxd4 {[%clk 0:02:40]}  Bg4 {[%clk 0:02:39]} 11. Bxc6 {[%clk 0:02:38]}  bxc6 {[%clk 0:02:39]} 12. Nbd2 {[%clk 0:02:37]}  c5 {[%clk 0:02:20]} 13. dxc5 {[%clk 0:02:28]}  Nxd2 {[%clk 0:02:19]} 14. Bxd2 {[%clk 0:02:20]}  Bxe5 {[%clk 0:02:17]} 15. Qxe5 {[%clk 0:02:17]}  f6 {[%clk 0:01:52]} 16. Qg3 {[%clk 0:02:04]}  Bd7 {[%clk 0:01:45]} 17. Rfe1 {[%clk 0:02:01]}  e5 {[%clk 0:01:45]} 18. Nxe5 {[%clk 0:02:01]}  fxe5 {[%clk 0:01:44]} 19. Qxe5 {[%clk 0:02:02]}  Rf5 {[%clk 0:01:32]} 20. Qd4 {[%clk 0:02:00]}  Qf8 {[%clk 0:01:09]} 21. Bc3 {[%clk 0:01:54]}  Kf7 {[%clk 0:00:48]} 22. Re5 {[%clk 0:01:40]}  Rxe5 {[%clk 0:00:17]} 23. Qxe5 {[%clk 0:01:41]}  Qe7 {[%clk 0:00:18]} 24. Qxd5+ {[%clk 0:01:40]}  Be6 {[%clk 0:00:18]} 25. Qxa8 {[%clk 0:01:39]} 1-0


[Site "https://www.chess.com"]